bitfinex/quotes_SOLUSD_20250724
["timestamp","ask_amount","ask_price","bid_price","bid_amount"]
[1753351036966,10.1282507,185.21,185.18,0.66000001]
[1753351037166,10.1282507,185.21,185.18,1e-08]
[1753351037964,5.39936575,185.21,185.18,1e-08]
[1753351038270,10.1282507,185.21,185.18,0.66000001]
[1753351039148,10.1282507,185.21,185.18,1e-08]
[1753351039355,10.8282507,185.21,185.18,1e-08]
[1753351039963,10.1282507,185.21,185.18,1e-08]
[1753351040168,0.7,185.2,185.18,1e-08]
[1753351040367,10.1282507,185.21,185.18,1e-08]
[1753351040868,10.1282507,185.21,185.18,0.66000001]
[1753351041076,5.39936575,185.21,185.18,0.66000001]
[1753351041471,10.82795456,185.22,185.18,0.66000001]
[1753351041775,5.39906961,185.22,185.19,0.66]
[1753351041957,26.0,185.21,185.19,0.66]
[1753351042869,26.0,185.21,185.18,1e-08]
[1753351042870,31.39937472,185.21,185.18,1e-08]
[1753351043074,26.0,185.21,185.19,0.66]
[1753351043260,26.0,185.2,185.19,0.66]
[1753351043584,5.39781928,185.26,185.19,5.38888495]
[1753351043763,5.39781928,185.26,185.21,4.72888495]
[1753351043955,36.12670423,185.26,185.21,4.72888495]
[1753351044274,5.39781928,185.26,185.22,0.66]
[1753351044469,30.72888495,185.25,185.22,0.66]
[1753351044850,36.12709706,185.25,185.22,0.66]
[1753351045256,5.42888495,185.24,185.19,0.66]
[1753351045557,5.42888495,185.24,185.18,1e-08]
[1753351045558,4.72888495,185.24,185.2,0.66]
[1753351045753,2.84378387,185.27,185.24,16.78468397]
[1753351045978,0.03,185.27,185.26,4.72888495]
[1753351046160,0.03,185.27,185.26,17.44468397]
[1753351046575,0.03,185.27,185.26,0.66]
[1753351046881,0.03,185.27,185.26,5.38888495]
[1753351048160,0.03,185.27,185.26,27.5713882]
[1753351049380,0.03,185.27,185.26,5.38888495]
[1753351049684,0.03,185.27,185.26,27.5713882]
[1753351049884,0.03,185.27,185.26,5.38888495]
[1753351050980,0.03,185.27,185.26,27.5713882]
[1753351051161,0.03,185.27,185.26,35.81637012]
[1753351051883,0.03,185.31,185.3,21.51356892]
[1753351052073,0.03,185.31,185.3,61.15356892]
[1753351052273,0.03,185.31,185.3,61.81356892]
[1753351052763,0.03,185.31,185.3,67.08211927]
[1753351052964,0.03,185.31,185.3,72.47877334]
[1753351053979,0.03,185.31,185.3,161.47877334]
[1753351054172,0.03,185.35,185.34,10.98928495]
[1753351054375,0.03,185.35,185.34,68.95936892]
[1753351054676,0.03,185.35,185.34,69.61936892]
[1753351054982,0.03,185.35,185.34,75.01485829]
[1753351055498,0.1,185.38,185.35,16.78468397]
[1753351055679,0.1,185.38,185.37,21.51356892]
[1753351055865,0.1,185.38,185.37,61.13356892]
[1753351056065,0.1,185.38,185.37,61.79356892]
[1753351056368,0.03,185.41,185.37,66.52245387]
[1753351056601,0.03,185.41,185.4,26.24245387]
[1753351056777,0.03,185.41,185.4,65.86245387]
[1753351056976,0.03,185.41,185.4,71.25619712]
[1753351057175,0.03,185.41,185.4,71.91619712]
[1753351058159,0.03,185.41,185.4,4.72888495]
[1753351058364,0.73,185.41,185.38,4.72888495]
[1753351058560,0.03,185.41,185.38,44.32888495]
[1753351058782,0.7,185.4,185.38,44.32888495]
[1753351059188,0.7,185.39,185.38,39.6]
[1753351059388,8.38919951,185.39,185.34,39.6]
[1753351059588,0.7,185.38,185.34,47.28919951]
[1753351061181,0.7,185.38,185.34,52.68444232]
[1753351061363,26.0,185.4,185.36,7.68919951]
[1753351061566,0.03,185.41,185.39,7.68919951]
[1753351062387,0.03,185.41,185.4,7.68919951]
[1753351065574,8.41919951,185.41,185.36,89.0]
[1753351065775,7.68919951,185.39,185.36,89.0]
[1753351065989,0.7,185.38,185.36,89.0]
[1753351066169,26.0,185.4,185.37,7.68919951]
[1753351067185,26.0,185.4,185.38,7.68919951]
[1753351067391,26.0,185.4,185.37,7.68919951]
[1753351067600,0.03,185.41,185.38,7.68919951]
[1753351067797,0.03,185.41,185.39,7.68919951]
[1753351068391,0.03,185.41,185.38,13.08345815]
[1753351068592,0.03,185.41,185.4,7.68919951]
[1753351069692,0.03,185.41,185.4,13.78294276]
[1753351072084,0.03,185.41,185.4,119.56762673]
[1753351074190,0.03,185.41,185.4,159.10762673]
[1753351074383,0.03,185.42,185.41,16.78468397]
[1753351074589,0.03,185.42,185.41,114.71322871]
[1753351074783,0.03,185.42,185.41,114.17388348]
[1753351075708,1e-08,185.42,185.41,145.56733582]
[1753351076290,0.03,185.45,185.44,42.78468397]
[1753351076479,0.03,185.45,185.44,89.99388348]
[1753351076684,0.03,185.45,185.44,90.69388348]
[1753351078089,0.03,185.45,185.44,185.08646329]
[1753351078499,0.03,185.45,185.44,158.38646329]
[1753351078912,0.03,185.45,185.44,159.08646329]
[1753351079284,0.03,185.45,185.44,156.10972883]
[1753351080081,0.03,185.45,185.44,115.88972883]
[1753351080283,0.03,185.45,185.44,133.21246505]
[1753351080585,0.03,185.45,185.44,138.60504486]
[1753351081584,0.03,185.45,185.44,139.30504486]
[1753351082311,0.03,185.45,185.44,156.08972883]
[1753351086809,0.03,185.45,185.44,155.38972883]
[1753351087023,0.73,185.45,185.41,4.71246505]
[1753351087195,0.73,185.45,185.42,39.46]
[1753351087410,0.03,185.45,185.42,44.17246505]
[1753351087709,0.7,185.44,185.42,44.17246505]
[1753351088114,0.03,185.45,185.43,4.71246505]
[1753351088320,0.03,185.45,185.44,44.17246505]
[1753351088692,0.03,185.45,185.44,44.87246505]
[1753351089509,0.03,185.45,185.44,44.17246505]
[1753351090509,0.03,185.45,185.44,39.46]
[1753351090914,0.73,185.45,185.44,39.46]
[1753351091421,0.03,185.45,185.44,39.46]
[1753351091911,0.03,185.45,185.44,49.56504486]
[1753351092112,0.03,185.45,185.44,44.85257981]
[1753351092328,0.03,185.45,185.44,44.17246505]
[1753351093915,0.03,185.45,185.44,50.22504486]
[1753351094625,0.03,185.45,185.44,156.00972883]
[1753351095510,0.03,185.45,185.44,159.15196378]
[1753351095725,0.03,185.45,185.44,89.0]
[1753351096026,0.03,185.45,185.44,138.54504486]
[1753351096802,0.03,185.45,185.44,133.15246505]
[1753351097023,0.03,185.45,185.44,138.47804486]
[1753351097542,0.03,185.45,185.44,155.92272883]
[1753351102036,0.03,185.45,185.44,115.82272883]
[1753351102208,0.03,185.45,185.44,44.13246505]
[1753351102405,0.03,185.45,185.43,93.71246505]
[1753351102633,0.03,185.45,185.44,44.13246505]
[1753351103332,0.03,185.45,185.44,66.96972883]
[1753351103705,0.03,185.45,185.44,67.50898681]
[1753351104413,0.03,185.45,185.44,156.50898681]
[1753351104608,0.03,185.45,185.44,155.96972883]
[1753351106519,0.03,185.45,185.44,111.83726378]
[1753351106723,0.03,185.45,185.44,155.94972883]
[1753351107239,0.03,185.45,185.44,158.91514561]
[1753351113733,1e-08,185.45,185.44,158.91514561]
[1753351114532,0.03,185.49,185.48,16.78468397]
[1753351114737,0.03,185.49,185.48,153.36170748]
[1753351114913,0.03,185.49,185.48,152.8225658]
[1753351115116,0.03,185.49,185.48,153.4825658]
[1753351115521,0.03,185.49,185.48,64.4825658]
[1753351115721,0.03,185.49,185.48,65.02170748]
[1753351116128,0.03,185.49,185.48,70.41312434]
[1753351116329,0.03,185.49,185.48,159.41312434]
[1753351116527,0.1,185.5,185.48,69.87398266]
[1753351116847,1e-08,185.5,185.49,51.1225658]
[1753351117435,0.03,185.53,185.5,16.78468397]
[1753351117641,0.03,185.53,185.52,24.4625658]
[1753351118146,0.03,185.53,185.52,30.51282022]
[1753351119041,1e-08,185.53,185.52,30.51282022]
[1753351119237,0.1,185.56,185.55,42.78468397]
[1753351119434,0.1,185.56,185.55,90.34150409]
[1753351119946,0.1,185.56,185.55,95.36128685]
[1753351120349,0.1,185.56,185.55,96.390887]
[1753351121547,0.1,185.56,185.55,95.730887]
[1753351122461,0.1,185.56,185.55,56.390887]
[1753351122631,0.1,185.56,185.55,95.710887]
[1753351125551,0.1,185.56,185.55,96.410887]
[1753351126951,0.81,185.56,185.55,7.67788183]
[1753351127151,0.81,185.56,185.55,46.97788183]
[1753351127656,0.81,185.56,185.55,7.67788183]
[1753351127857,0.81,185.56,185.55,46.97788183]
[1753351128454,0.1,185.56,185.55,52.36726474]
[1753351129157,0.1,185.56,185.55,49.39671127]
[1753351129649,0.81,185.56,185.55,44.00732836]
[1753351130162,0.81,185.56,185.55,39.3]
[1753351130354,6.19909247,185.56,185.55,39.3]
[1753351130550,10.90642083,185.56,185.55,39.3]
[1753351131552,0.81,185.56,185.55,39.3]
[1753351140544,0.1,185.56,185.55,49.39671127]
[1753351140748,0.1,185.56,185.55,44.00732836]
[1753351141373,0.1,185.56,185.55,49.93564956]
[1753351142164,0.1,185.56,185.55,67.42033353]
[1753351142665,0.1,185.56,185.55,66.72033353]
[1753351143268,0.81,185.56,185.55,44.48626665]
[1753351143566,0.81,185.56,185.55,39.24]
[1753351144441,0.81,185.56,185.55,43.94732836]
[1753351144863,0.1,185.56,185.55,43.94732836]
[1753351145069,0.1,185.56,185.55,44.64732836]
[1753351145250,0.1,185.56,185.55,50.03671127]
[1753351146351,0.1,185.56,185.55,50.57564956]
[1753351146764,0.1,185.56,185.55,49.87564956]
[1753351147570,0.81,185.56,185.54,89.0]
[1753351147742,0.81,185.56,185.55,39.22]
[1753351148264,26.0,185.54,185.49,0.06]
[1753351148466,4.70732836,185.5,185.49,0.06]
[1753351148857,5.41732836,185.5,185.49,0.06]
[1753351149865,10.80816393,185.5,185.49,0.06]
[1753351151861,5.41732836,185.5,185.49,0.06]
[1753351153377,5.39732836,185.53,185.49,0.06]
[1753351153574,10.78736217,185.53,185.49,0.06]
[1753351153772,10.09736217,185.53,185.49,0.06]
[1753351154083,0.69,185.52,185.49,0.06]
[1753351154663,4.70732836,185.52,185.49,0.06]
[1753351154876,0.69,185.51,185.49,0.06]
[1753351157566,4.70732836,185.52,185.49,0.06]
[1753351157773,4.70732836,185.53,185.49,0.06]
[1753351157982,0.69,185.52,185.49,0.06]
[1753351158580,5.39732836,185.52,185.49,0.06]
[1753351159789,0.1,185.56,185.5,0.72]
[1753351159982,4.70732836,185.54,185.5,0.72]
[1753351160493,0.69,185.53,185.49,4.76732836]
[1753351160701,0.69,185.52,185.49,0.06]
[1753351161077,5.39732836,185.51,185.49,0.06]
[1753351161298,5.39732836,185.5,185.49,0.06]
[1753351163871,10.78816393,185.5,185.49,0.06]
[1753351165376,6.08083557,185.5,185.49,0.06]
[1753351165671,10.78816393,185.5,185.49,0.06]
[1753351165885,6.08083557,185.5,185.49,0.06]
[1753351166092,5.39732836,185.5,185.49,0.06]
[1753351166391,10.78736988,185.53,185.49,0.06]
[1753351166773,0.69,185.52,185.49,0.06]
[1753351166971,5.39732836,185.52,185.49,0.06]
[1753351170714,4.70732836,185.53,185.49,0.06]
[1753351171004,4.70732836,185.53,185.49,0.78]
[1753351171216,5.39732836,185.53,185.49,0.78]
[1753351172083,0.69,185.53,185.49,5.48732836]
[1753351172402,0.69,185.53,185.49,10.87834844]
[1753351172901,10.78681786,185.55,185.5,5.42732836]
[1753351173112,0.69,185.54,185.5,5.42732836]
[1753351173311,0.69,185.54,185.5,4.70732836]
[1753351173492,0.69,185.53,185.49,10.15834844]
[1753351173685,0.69,185.53,185.49,10.87834844]
[1753351177022,4.70732836,185.54,185.49,10.15834844]
[1753351177200,5.39732836,185.54,185.5,6.11074309]
[1753351177393,4.70732836,185.55,185.51,0.72]
[1753351177720,5.39732836,185.54,185.5,5.39074309]
[1753351177893,5.39732836,185.54,185.5,6.11074309]
[1753351179895,0.69,185.54,185.5,6.11074309]
[1753351180612,10.09671425,185.55,185.51,0.72]
[1753351180827,10.78671425,185.55,185.51,0.72]
[1753351181111,10.09671425,185.55,185.5,10.09807145]
[1753351181414,5.39732836,185.54,185.49,17.15749783]
[1753351182119,0.69,185.53,185.49,17.15749783]
[1753351183015,4.70732836,185.54,185.49,16.43749783]
[1753351183214,0.65,185.52,185.49,17.13749783]
[1753351183519,0.65,185.53,185.49,17.13749783]
[1753351183719,4.70732836,185.51,185.49,0.06]
[1753351183916,5.35732836,185.5,185.49,0.06]
[1753351184238,10.06465672,185.5,185.49,0.06]
[1753351184421,5.35732836,185.5,185.49,0.06]
[1753351185122,10.74816393,185.5,185.49,0.06]
[1753351186623,5.35732836,185.5,185.49,0.06]
[1753351186803,10.74767371,185.52,185.49,0.06]
[1753351187198,4.70732836,185.5,185.49,0.06]
[1753351187906,5.35732836,185.5,185.49,0.06]
[1753351189023,10.74816393,185.5,185.49,0.06]
[1753351189400,5.35732836,185.5,185.49,0.06]
[1753351191813,0.65,185.5,185.49,0.06]
[1753351192013,4.70732836,185.5,185.49,0.06]
[1753351192608,5.35732836,185.5,185.49,0.06]
[1753351192806,0.65,185.5,185.49,0.06]
[1753351193008,5.35732836,185.5,185.49,0.06]
[1753351193523,10.74816393,185.5,185.49,0.06]
[1753351199918,5.35732836,185.5,185.49,0.06]
[1753351200318,3.46175841,185.52,185.49,0.06]
[1753351200618,0.75,185.56,185.49,0.76]
[1753351200833,0.1,185.56,185.53,4.70732836]
[1753351201206,0.1,185.56,185.55,4.70732836]
[1753351201423,0.1,185.56,185.54,8.91776733]
[1753351201624,0.03,185.58,185.55,103.44201233]
[1753351201827,0.03,185.69,185.65,26.0]
[1753351202137,0.03,185.69,185.68,4.70732836]
[1753351202341,0.03,185.69,185.68,5.24588932]
[1753351202630,0.03,185.69,185.68,22.03057329]
[1753351203131,0.03,185.69,185.68,24.98405325]
[1753351204846,0.03,185.69,185.68,7.66080832]
[1753351205055,0.03,185.69,185.67,7.66080832]
[1753351205332,0.65,185.68,185.64,16.78468397]
[1753351205552,8.31080832,185.67,185.63,39.02]
[1753351205713,0.65,185.66,185.63,39.02]
[1753351205917,7.66080832,185.67,185.63,16.78468397]
[1753351206533,0.65,185.66,185.63,16.78468397]
[1753351206759,8.31080832,185.66,185.63,16.78468397]
[1753351206930,0.03,185.69,185.63,16.78468397]
[1753351207132,7.66080832,185.65,185.63,16.78468397]
[1753351207347,8.31080832,185.64,185.53,6.5043]
[1753351207639,7.66080832,185.62,185.57,7.66080832]
[1753351207847,7.66080832,185.61,185.56,7.66080832]
[1753351208337,7.66080832,185.63,185.58,7.66080832]
[1753351208540,7.66080832,185.61,185.56,16.78468397]
[1753351208744,7.66080832,185.59,185.56,16.78468397]
[1753351209234,7.66080832,185.6,185.56,16.78468397]
[1753351209618,7.66080832,185.59,185.55,39.0]
[1753351209823,7.66080832,185.57,185.55,39.0]
[1753351210134,7.66080832,185.57,185.53,23.28898397]
[1753351210333,8.31080832,185.56,185.53,23.28898397]
[1753351210850,7.66080832,185.56,185.53,23.28898397]
[1753351211153,7.66080832,185.56,185.53,6.5043]
[1753351211321,8.31080832,185.55,185.53,6.5043]
[1753351211521,0.65,185.55,185.52,39.0]
[1753351211755,7.66080832,185.55,185.52,39.0]
[1753351211950,7.66080832,185.56,185.52,39.0]
[1753351212621,0.65,185.56,185.52,39.0]
[1753351212822,8.31080832,185.56,185.52,39.0]
[1753351214150,8.33080832,185.55,185.52,39.0]
[1753351214532,7.66080832,185.55,185.52,39.0]
[1753351215051,8.33080832,185.55,185.52,39.0]
[1753351215232,8.33080832,185.55,185.51,1.5478]
[1753351215831,8.33080832,185.54,185.51,1.5478]
[1753351216756,8.33080832,185.53,185.49,45.5443]
[1753351217654,7.66080832,185.54,185.49,58.59618867]
[1753351217831,8.33080832,185.55,185.5,7.66080832]
[1753351218229,7.66080832,185.55,185.5,7.66080832]
[1753351218453,0.67,185.54,185.49,58.59618867]
[1753351219357,8.33080832,185.54,185.49,58.59618867]
[1753351219851,0.67,185.53,185.49,53.20510832]
[1753351220155,8.33080832,185.52,185.49,0.06]
[1753351221553,8.33080832,185.51,185.49,0.06]
[1753351221734,7.66080832,185.5,185.49,0.06]
[1753351222046,0.67,185.5,185.49,0.06]
[1753351222235,7.66080832,185.51,185.49,0.06]
[1753351222655,8.33080832,185.51,185.49,0.06]
[1753351223564,0.67,185.51,185.49,0.06]
[1753351224243,0.67,185.54,185.5,7.66080832]
[1753351224458,7.66080832,185.55,185.51,7.66080832]
[1753351224760,8.33080832,185.54,185.49,46.70080832]
[1753351225064,0.67,185.53,185.49,46.70080832]
[1753351225770,0.67,185.53,185.49,52.09165453]
[1753351225942,0.67,185.53,185.49,141.09165453]
[1753351226139,8.33080832,185.52,185.49,128.04]
[1753351226363,8.33080832,185.51,185.49,89.06]
[1753351226568,0.67,185.5,185.49,89.06]
[1753351226939,8.33080832,185.52,185.49,89.06]
[1753351227269,0.67,185.51,185.49,89.06]
[1753351228339,7.66080832,185.52,185.49,89.06]
[1753351228759,8.33080832,185.52,185.49,94.45112565]
[1753351228964,8.33080832,185.52,185.49,89.06]
[1753351229958,8.33080832,185.51,185.49,89.06]
[1753351230160,7.66080832,185.51,185.49,89.06]
[1753351230343,0.67,185.5,185.49,89.06]
[1753351230941,7.66080832,185.52,185.49,89.06]
[1753351231236,8.33080832,185.52,185.49,89.06]
[1753351231954,8.33080832,185.52,185.49,0.06]
[1753351235159,4.71202168,185.52,185.49,0.06]
[1753351235350,0.67,185.51,185.49,0.06]
[1753351235554,4.71202168,185.5,185.49,0.06]
[1753351236058,0.67,185.5,185.49,0.06]
[1753351237473,5.38202168,185.55,185.49,43.71202168]
[1753351237671,5.38202168,185.55,185.5,4.71202168]
[1753351238056,0.67,185.54,185.49,132.71202168]
[1753351238460,5.38202168,185.54,185.49,132.71202168]
[1753351238768,4.71202168,185.54,185.49,132.71202168]
[1753351238955,0.67,185.53,185.49,132.71202168]
[1753351239151,0.67,185.53,185.5,5.39083557]
[1753351239354,4.71202168,185.54,185.5,5.39083557]
[1753351239568,5.38202168,185.54,185.5,5.39083557]
[1753351239868,0.67,185.56,185.52,4.71202168]
[1753351240072,0.67,185.55,185.51,38.94]
[1753351240370,0.67,185.54,185.51,38.94]
[1753351241058,4.71202168,185.52,185.5,89.0]
[1753351241379,5.38202168,185.51,185.5,89.0]
[1753351243470,5.43202168,185.51,185.49,0.06]
[1753351243769,5.43202168,185.5,185.49,0.06]
[1753351243966,0.72,185.53,185.49,0.06]
[1753351244175,4.71202168,185.56,185.51,4.71202168]
[1753351244347,0.72,185.55,185.51,4.71202168]
[1753351244549,0.72,185.54,185.51,4.71202168]
[1753351244769,0.72,185.54,185.5,43.63202168]
[1753351244963,0.72,185.54,185.5,38.92]
[1753351244964,5.43202168,185.54,185.5,38.92]
[1753351245159,0.72,185.53,185.5,38.92]
[1753351245366,4.71202168,185.51,185.49,0.06]
[1753351245679,4.71202168,185.5,185.49,0.06]
[1753351245876,5.43202168,185.5,185.49,0.06]
[1753351246567,0.72,185.5,185.49,0.06]
[1753351246877,4.71202168,185.52,185.49,0.06]
[1753351247056,5.43202168,185.52,185.49,0.06]
[1753351247258,0.72,185.51,185.49,0.06]
[1753351247652,0.72,185.54,185.49,0.06]
[1753351247856,0.72,185.54,185.49,4.77202168]
[1753351248180,0.72,185.57,185.53,4.71202168]
[1753351248365,0.72,185.6,185.53,43.63202168]
[1753351248674,5.43202168,185.6,185.55,4.71202168]
[1753351248879,0.72,185.59,185.55,4.71202168]
[1753351249373,0.72,185.59,185.54,4.71202168]
[1753351249678,0.72,185.58,185.55,5.38938291]
[1753351250471,5.43202168,185.6,185.55,10.10140459]
[1753351250676,0.72,185.59,185.55,10.10140459]
[1753351250864,0.72,185.61,185.56,10.10104398]
[1753351251069,5.43202168,185.61,185.56,10.10104398]
[1753351251270,7.67185159,185.61,185.56,13.06087389]
[1753351251471,0.72,185.6,185.56,13.06087389]
[1753351251977,6.95651402,185.62,185.58,7.67185159]
[1753351252480,7.67651402,185.62,185.58,7.67185159]
[1753351253555,7.67651402,185.62,185.57,5.38852363]
[1753351253556,0.72,185.61,185.57,13.06037522]
[1753351253962,6.95651402,185.62,185.58,7.67185159]
[1753351254163,7.67651402,185.62,185.58,7.67185159]
[1753351254476,6.95651402,185.62,185.6,7.67185159]
[1753351255455,6.95651402,185.62,185.59,38.9]
[1753351255678,6.95651402,185.62,185.59,46.57185159]
[1753351255981,6.95651402,185.62,185.59,51.96000151]
[1753351256368,6.95651402,185.62,185.59,44.28814992]
[1753351256561,6.95651402,185.62,185.59,51.96000151]
[1753351257363,6.95651402,185.62,185.59,38.9]
[1753351257580,6.95651402,185.62,185.59,46.57185159]
[1753351257971,7.67651402,185.62,185.59,46.57185159]
[1753351258262,0.72,185.61,185.57,135.55185159]
[1753351258466,7.67185159,185.6,185.57,38.88]
[1753351258872,0.72,185.59,185.57,38.88]
[1753351259299,0.72,185.59,185.57,46.55185159]
[1753351259960,8.39185159,185.61,185.57,46.55185159]
[1753351260165,0.72,185.59,185.57,46.55185159]
[1753351260385,0.72,185.59,185.57,38.88]
[1753351260972,0.72,185.61,185.57,38.88]
[1753351261172,6.95651402,185.62,185.58,7.67185159]
[1753351261370,6.95651402,185.62,185.61,7.67185159]
[1753351262819,6.95651402,185.62,185.6,38.88]
[1753351262970,7.67651402,185.62,185.6,46.55185159]
[1753351263297,6.95651402,185.62,185.61,7.67185159]
[1753351263582,6.95651402,185.62,185.61,30.64673556]
[1753351263790,0.03,185.65,185.61,31.18549963]
[1753351263987,0.03,185.65,185.63,7.67185159]
[1753351264177,0.03,185.65,185.62,46.53185159]
[1753351264370,0.75,185.65,185.62,46.53185159]
[1753351264971,7.67185159,185.63,185.61,89.0]
[1753351265170,8.39185159,185.62,185.57,38.86]
[1753351265372,7.67185159,185.59,185.57,38.86]
[1753351265670,0.72,185.58,185.57,38.86]
[1753351266192,8.39185159,185.58,185.5,38.86]
[1753351266390,7.67185159,185.54,185.5,38.86]
[1753351266770,8.39185159,185.54,185.5,38.86]
[1753351267189,0.72,185.54,185.5,51.92255752]
[1753351267365,0.72,185.53,185.5,44.25070593]
[1753351267570,8.39185159,185.56,185.51,7.67185159]
[1753351267772,7.67185159,185.55,185.5,51.92255752]
[1753351268180,5.38822134,185.59,185.52,7.67185159]
[1753351268369,7.67185159,185.57,185.52,46.53185159]
[1753351268584,8.39185159,185.57,185.52,46.53185159]
[1753351268964,8.39185159,185.56,185.52,38.86]
[1753351269189,0.72,185.55,185.52,38.86]
[1753351269486,8.39185159,185.54,185.52,38.86]
[1753351269664,8.39185159,185.53,185.49,0.06]
[1753351269867,7.67185159,185.52,185.49,0.06]
[1753351270111,8.39185159,185.52,185.49,0.06]
[1753351270275,7.67185159,185.52,185.49,0.06]
[1753351270473,0.72,185.51,185.49,0.06]
[1753351270688,7.67185159,185.52,185.49,0.06]
[1753351270887,0.72,185.52,185.49,0.06]
[1753351271095,7.67185159,185.53,185.49,0.06]
[1753351271302,8.39185159,185.52,185.49,0.06]
[1753351271800,0.72,185.51,185.49,0.06]
[1753351271990,8.39185159,185.52,185.49,0.06]
[1753351272298,0.72,185.52,185.49,0.06]
[1753351274069,8.35185159,185.51,185.49,0.06]
[1753351274388,7.67185159,185.5,185.49,0.06]
[1753351274569,8.35185159,185.5,185.49,0.06]
[1753351274980,7.67185159,185.46,185.45,0.06]
[1753351275192,4.71568635,185.46,185.45,0.06]
[1753351275493,5.39568635,185.46,185.45,0.06]
[1753351275679,5.39568635,185.46,185.42,0.06]
[1753351275884,5.39167334,185.48,185.42,0.06]
[1753351275885,4.71568635,185.43,185.42,0.06]
[1753351276581,5.39568635,185.43,185.42,0.06]
[1753351277187,13.76256661,185.43,185.42,0.06]
[1753351280693,52.62256661,185.43,185.42,0.06]
[1753351283091,8.36969599,185.43,185.42,0.06]
[1753351283270,7.68969599,185.43,185.42,0.06]
[1753351283473,8.36969599,185.43,185.42,0.06]
[1753351284783,8.47260832,185.43,185.42,0.06]
[1753351285181,13.86547894,185.43,185.42,0.06]
[1753351286079,39.86547894,185.43,185.42,0.06]
[1753351287384,78.70547894,185.43,185.42,0.06]
[1753351288184,52.02547894,185.43,185.42,0.06]
[1753351288376,52.70547894,185.43,185.42,0.06]
[1753351290200,78.70547894,185.43,185.42,0.06]
[1753351290502,52.70547894,185.43,185.42,0.06]
[1753351290692,55.51872866,185.43,185.42,0.06]
[1753351291194,16.67872866,185.43,185.42,0.06]
[1753351291388,55.51872866,185.43,185.42,0.06]
[1753351293797,16.67872866,185.43,185.42,0.06]
[1753351294102,52.70547894,185.43,185.42,0.06]
[1753351296708,7.79260832,185.43,185.42,0.06]
[1753351296880,46.61260832,185.43,185.42,0.06]
[1753351297088,0.10291233,185.43,185.42,0.06]
[1753351297593,10.21187812,185.43,185.42,0.06]
[1753351297789,10.89187812,185.43,185.42,0.06]
[1753351298591,75.71187812,185.43,185.42,0.06]
[1753351300706,31.4990075,185.43,185.42,0.06]
[1753351300885,38.92291233,185.43,185.42,0.06]
[1753351301081,49.03187812,185.43,185.42,0.06]
[1753351301286,52.68228042,185.43,185.42,0.06]
[1753351301694,52.00228042,185.43,185.42,0.06]
[1753351302098,46.6094098,185.43,185.42,0.06]
[1753351302804,13.18228042,185.43,185.42,0.06]
[1753351303022,7.7894098,185.43,185.42,0.06]
[1753351303697,78.67228042,185.43,185.42,0.06]
[1753351304618,78.77735122,185.43,185.42,0.06]
[1753351305799,78.67443889,185.43,185.42,0.06]
[1753351305991,26.0,185.4,185.38,0.06]
[1753351306190,72.48649747,185.39,185.38,0.06]
[1753351306495,73.15649747,185.39,185.38,0.06]
[1753351306704,26.0,185.37,185.36,0.06]
[1753351306897,72.48649747,185.37,185.36,0.06]
[1753351307220,73.15649747,185.37,185.36,0.06]
[1753351307896,78.55111364,185.37,185.36,0.06]
[1753351311993,78.55111364,185.37,185.34,0.06]
[1753351312201,7.68649747,185.35,185.34,0.06]
[1753351312397,46.48649747,185.35,185.34,0.06]
[1753351313296,47.15649747,185.35,185.34,0.06]
[1753351314499,60.23819321,185.35,185.34,0.06]
[1753351314901,52.55169574,185.35,185.34,0.06]
[1753351315608,13.75169574,185.35,185.34,0.06]